bitfinex/quotes_BTCUSD_20250118
["timestamp","ask_amount","ask_price","bid_price","bid_amount"]
[1737215916306,0.08379986,104750.0,104740.0,0.09276863]
[1737215917522,0.00089986,104750.0,104740.0,0.09276863]
[1737215917735,0.00089986,104750.0,104740.0,0.19200944]
[1737215918967,0.00089986,104750.0,104740.0,0.30890767]
[1737215919179,0.00089986,104750.0,104740.0,0.30795304]
[1737215920134,0.00089986,104750.0,104740.0,0.39258628]
[1737215920551,0.00089986,104750.0,104740.0,0.27568805]
[1737215921321,0.00089986,104750.0,104740.0,0.30795304]
[1737215921645,0.00089986,104750.0,104740.0,0.19105481]
[1737215921881,0.00089986,104750.0,104740.0,0.19200937]
[1737215923194,0.09636486,104750.0,104740.0,0.09276856]
[1737215923399,0.00089986,104750.0,104740.0,0.09276856]
[1737215923777,0.00089986,104750.0,104740.0,0.09319656]
[1737215925331,0.09636486,104750.0,104740.0,0.09319656]
[1737215925474,0.00089986,104750.0,104740.0,0.09319656]
[1737215927601,0.09636486,104750.0,104740.0,0.09319656]
[1737215927836,0.00089986,104750.0,104740.0,0.09319656]
[1737215928245,0.09636486,104750.0,104740.0,0.09319656]
[1737215928719,0.00089986,104750.0,104740.0,0.09319656]
[1737215928928,0.09636486,104750.0,104740.0,0.092242]
[1737215929418,0.00089986,104750.0,104740.0,0.09319664]
[1737215929640,0.09636486,104750.0,104740.0,0.09319664]
[1737215929852,0.00089986,104750.0,104740.0,0.09319664]
[1737215930928,0.09636486,104750.0,104740.0,0.09319664]
[1737215931154,0.09636486,104750.0,104740.0,0.092242]
[1737215931932,0.09636486,104750.0,104740.0,0.000428]
[1737215932157,0.09636486,104750.0,104740.0,0.095902]
[1737215933151,0.00089986,104750.0,104740.0,0.095902]
[1737215933357,0.09636486,104750.0,104740.0,0.095902]
[1737215933558,0.00089986,104750.0,104740.0,0.095902]
[1737215933784,0.09636486,104750.0,104740.0,0.000428]
[1737215933983,0.09636486,104750.0,104740.0,0.095902]
[1737215934390,0.09636486,104750.0,104740.0,0.000428]
[1737215934605,0.09636486,104750.0,104740.0,0.095902]
[1737215934807,0.00089986,104750.0,104740.0,0.095902]
[1737215935214,0.09636486,104750.0,104740.0,0.095902]
[1737215935557,0.17991789,104750.0,104740.0,0.000428]
[1737215937275,0.08349986,104750.0,104740.0,0.095902]
[1737215937479,0.00089986,104750.0,104740.0,0.095902]
[1737215937684,0.00089986,104750.0,104740.0,0.09685664]
[1737215937892,0.00089986,104750.0,104740.0,0.095902]
[1737215938332,0.00089986,104750.0,104740.0,0.09685664]
[1737215938538,0.00089986,104750.0,104740.0,0.095902]
[1737215940034,0.09636486,104750.0,104740.0,0.095902]
[1737215940267,0.09636486,104750.0,104740.0,0.000428]
[1737215940494,0.17896486,104750.0,104740.0,0.000428]
[1737215944216,0.17896486,104750.0,104740.0,0.095902]
[1737215945800,0.17896486,104750.0,104740.0,0.000428]
[1737215946003,0.08349986,104750.0,104740.0,0.095902]
[1737215946221,0.00089986,104750.0,104740.0,0.095902]
[1737215950431,0.09636486,104750.0,104740.0,0.095902]
[1737215950634,0.00089986,104750.0,104740.0,0.095902]
[1737215951578,0.17686486,104750.0,104740.0,0.000428]
[1737215951911,0.55943591,104750.0,104730.0,0.66611555]
[1737215952389,0.55944291,104750.0,104730.0,0.57171855]
[1737215952564,0.095474,104740.0,104730.0,0.47623555]
[1737215952890,0.095474,104740.0,104730.0,0.38075355]
[1737215953070,0.223774,104740.0,104730.0,0.1800949]
[1737215953671,0.1283,104740.0,104730.0,0.1800949]
[1737215954215,0.1283,104740.0,104730.0,0.095483]
[1737215954345,0.223774,104740.0,104730.0,0.095483]
[1737215955346,0.75286787,104740.0,104730.0,0.095483]
[1737215957254,0.75286787,104740.0,104730.0,0.09846729]
[1737215957479,0.74937687,104730.0,104720.0,0.5927118]
[1737215957682,0.74937687,104730.0,104710.0,0.2538357]
[1737215957683,0.15,104710.0,104700.0,0.37570391]
[1737215957903,0.7864633,104710.0,104700.0,0.37620369]
[1737215958104,0.78551027,104710.0,104700.0,0.37620369]
[1737215958314,0.88475108,104710.0,104700.0,0.37620369]
[1737215958530,0.36851,104700.0,104690.0,0.00089985]
[1737215958742,0.30756151,104700.0,104680.0,0.66656956]
[1737215958963,0.49685384,104690.0,104680.0,0.66656956]
[1737215959219,0.49590081,104690.0,104680.0,0.64746356]
[1737215959417,0.441229,104680.0,104670.0,0.00090006]
[1737215959636,0.54046981,104680.0,104670.0,0.00090006]
[1737215959883,0.58896981,104680.0,104670.0,0.00090006]
[1737215960285,0.58896981,104680.0,104670.0,6e-08]
[1737215960497,0.321838,104670.0,104660.0,2.7e-07]
[1737215960705,0.54170109,104670.0,104660.0,2.7e-07]
[1737215960932,0.023,104660.0,104650.0,0.0008988]
[1737215961110,0.023,104660.0,104650.0,8e-07]
[1737215961111,0.36874084,104660.0,104650.0,8e-07]
[1737215961359,0.118556,104650.0,104640.0,0.03006]
[1737215961565,0.22538984,104650.0,104640.0,0.03006]
[1737215961800,0.27882385,104650.0,104640.0,0.03006]
[1737215962040,0.468565,104640.0,104620.0,0.0004282]
[1737215962267,0.46780581,104640.0,104630.0,0.00094897]
[1737215962726,0.095574,104630.0,104620.0,0.0004282]
[1737215962947,0.34576784,104630.0,104620.0,0.0004282]
[1737215963118,0.34481481,104630.0,104620.0,0.0004282]
[1737215963646,0.63154881,104630.0,104610.0,0.0161738]
[1737215963926,0.095584,104620.0,104610.0,0.0161738]
[1737215964710,0.30805212,104620.0,104610.0,0.0161738]
[1737215967151,0.30805212,104620.0,104610.0,0.01599756]
[1737215967436,0.30805212,104620.0,104610.0,0.21178728]
[1737215967437,0.21246812,104620.0,104610.0,0.21178728]
[1737215967573,0.21246812,104620.0,104610.0,0.19329428]
[1737215967772,0.21246812,104620.0,104610.0,0.28888718]
[1737215968015,0.21246812,104620.0,104610.0,0.28793137]
[1737215968615,0.286726,104630.0,104610.0,0.47911637]
[1737215969203,0.286726,104630.0,104610.0,0.28793137]
[1737215969405,0.477876,104630.0,104610.0,0.28793137]
[1737215969655,0.09653703,104620.0,104610.0,0.01599756]
[1737215970345,0.21877784,104620.0,104610.0,0.01599756]
[1737215970556,0.30281206,104620.0,104610.0,0.01599756]
[1737215970759,0.20722806,104620.0,104600.0,0.04167866]
[1737215970895,0.095593,104610.0,104600.0,0.04167866]
[1737215972183,0.18013068,104610.0,104600.0,0.04167866]
[1737215972325,0.18013068,104610.0,104600.0,0.03869087]
[1737215972886,0.18108371,104610.0,104600.0,0.03869087]
[1737215973091,0.095602,104600.0,104590.0,0.08008779]
[1737215973303,0.095602,104600.0,104590.0,0.00298779]
[1737215973920,0.382418,104600.0,104570.0,0.660098]
[1737215974069,0.095612,104590.0,104580.0,0.09562]
[1737215974282,0.573637,104600.0,104580.0,0.09562]
[1737215974488,0.573637,104600.0,104570.0,0.70973922]
[1737215974489,0.095612,104590.0,104570.0,0.70973922]
[1737215974716,0.095612,104590.0,104570.0,0.52919348]
[1737215974936,0.286843,104590.0,104570.0,0.70973922]
[1737215975335,0.09562,104580.0,104570.0,0.22851001]
[1737215975536,0.09562,104580.0,104570.0,0.05368101]
[1737215975789,0.09562,104580.0,104570.0,0.0488996]
[1737215976068,0.573701,104590.0,104570.0,0.1445286]
[1737215976069,0.382463,104590.0,104570.0,0.1445286]
[1737215976271,0.09562,104580.0,104570.0,0.1445286]
[1737215976477,0.286848,104590.0,104570.0,0.3357866]
[1737215976682,0.478082,104590.0,104570.0,0.3357866]
[1737215977244,0.286848,104590.0,104570.0,0.3357866]
[1737215977442,0.478081,104590.0,104570.0,0.3357866]
[1737215978197,0.09562,104580.0,104570.0,0.3357786]
[1737215978349,0.09562,104580.0,104560.0,4.25987319]
[1737215978558,0.095629,104570.0,104560.0,4.26002329]
[1737215978767,0.09658203,104570.0,104560.0,3.95391913]
[1737215979695,0.478128,104580.0,104560.0,4.24082913]
[1737215980132,0.478128,104580.0,104560.0,4.43210513]
[1737215980338,0.095613,104590.0,104580.0,0.095619]
[1737215980515,0.286844,104590.0,104570.0,0.286884]
[1737215980714,0.00095303,104580.0,104570.0,0.286884]
[1737215980896,0.286867,104580.0,104560.0,4.43208313]
[1737215981096,0.00095303,104570.0,104560.0,4.24081513]
[1737215981306,0.478109,104580.0,104560.0,4.43208213]
[1737215981523,0.286867,104580.0,104570.0,0.095629]
[1737215981744,0.286867,104580.0,104560.0,4.43207913]
[1737215981927,0.478118,104580.0,104560.0,4.43207913]
[1737215982136,0.478118,104580.0,104560.0,4.42907913]
[1737215982336,0.67298781,104580.0,104560.0,4.23781413]
[1737215982541,0.095629,104570.0,104560.0,3.95091913]
[1737215982757,0.09658203,104570.0,104560.0,3.95091913]
[1737215983105,0.19582284,104570.0,104560.0,3.95091913]
[1737215983325,0.21882284,104570.0,104560.0,3.95091913]
[1737215983541,0.21786981,104570.0,104560.0,3.95091913]
[1737215983760,0.21746981,104570.0,104560.0,3.95091913]
[1737215985192,0.21746981,104570.0,104560.0,3.92339554]
[1737215990577,0.31746981,104570.0,104560.0,3.92339554]
[1737215991052,0.19446981,104570.0,104560.0,3.92339554]
[1737215991426,0.19542284,104570.0,104560.0,3.92339554]
[1737215991859,0.19446981,104570.0,104560.0,3.92339554]
[1737215992195,0.21746981,104570.0,104560.0,3.92339554]
[1737215992444,0.19486981,104570.0,104560.0,3.92339554]
[1737215992605,0.21882284,104570.0,104560.0,3.92339554]
[1737215992813,0.21786981,104570.0,104560.0,3.92339554]
[1737215993302,0.21786981,104570.0,104560.0,3.92382424]
[1737215994029,0.21877009,104570.0,104560.0,3.92382424]
[1737215994775,0.31877009,104570.0,104560.0,3.92382424]
[1737215995043,0.51292161,104570.0,104560.0,3.92382424]
[1737215995250,0.63899931,104570.0,104560.0,0.0005788]
[1737215995457,1.33899931,104570.0,104560.0,0.0005788]
[1737215996035,1.23849931,104570.0,104560.0,0.0005788]
[1737215996256,1.20255009,104570.0,104560.0,0.0005788]
[1737215996459,1.19607009,104570.0,104560.0,0.0005788]
[1737215996741,1.20255009,104570.0,104560.0,0.0005788]
[1737215998050,1.19607009,104570.0,104560.0,0.0005788]
[1737215998256,1.2953109,104570.0,104560.0,0.0005788]
[1737215998459,1.3017909,104570.0,104560.0,0.0005788]
[1737215999101,1.43156291,104570.0,104560.0,0.0005788]
[1737216001025,1.24727009,104570.0,104560.0,0.0005788]
[1737216001285,1.34727009,104570.0,104560.0,0.0005788]
[1737216001529,1.3578437,104570.0,104560.0,0.0005788]
[1737216001772,0.5578437,104570.0,104560.0,0.0005788]
[1737216001978,0.5143237,104570.0,104560.0,0.0005788]
[1737216002156,0.53224653,104570.0,104560.0,0.0005788]
[1737216002361,0.67576653,104570.0,104560.0,0.0005788]
[1737216002605,0.50424653,104570.0,104560.0,0.0005788]
[1737216002811,0.60424653,104570.0,104560.0,0.0005788]
[1737216003007,0.36877009,104570.0,104560.0,0.0005788]
[1737216004639,0.44427009,104570.0,104560.0,0.0005788]
[1737216005813,0.52775009,104570.0,104560.0,0.0005788]
[1737216006051,0.62775009,104570.0,104560.0,0.0005788]
[1737216006270,0.52775009,104570.0,104560.0,0.0005788]
[1737216006504,0.42775009,104570.0,104560.0,0.0005788]
[1737216007062,0.42127009,104570.0,104560.0,0.0005788]
[1737216007263,0.52127009,104570.0,104560.0,0.0005788]
[1737216007743,0.34577009,104570.0,104560.0,0.0005788]
[1737216007953,0.44577009,104570.0,104560.0,0.0005788]
[1737216008251,0.10014109,104570.0,104560.0,0.0005788]
[1737216008594,0.10014109,104570.0,104560.0,0.0962168]
[1737216009017,0.12314109,104570.0,104560.0,0.1442168]
[1737216009217,0.10014109,104570.0,104560.0,0.3712168]
[1737216009416,0.00090028,104570.0,104560.0,0.48811503]
[1737216009657,0.00090028,104570.0,104560.0,0.51757588]
[1737216010243,0.00090028,104570.0,104560.0,0.54590243]
[1737216012381,0.00090028,104570.0,104560.0,0.4290042]
[1737216013810,0.00090028,104570.0,104560.0,0.54590243]
[1737216014166,0.00090028,104570.0,104560.0,0.24954335]
[1737216014297,0.00090028,104570.0,104560.0,0.15390535]
[1737216014490,0.10014109,104570.0,104560.0,0.02890535]
[1737216014764,0.1360287,104570.0,104560.0,0.02890535]
[1737216014904,0.10014109,104570.0,104560.0,0.12454335]
[1737216015710,0.10109412,104570.0,104560.0,0.12454335]
[1737216016120,0.10109412,104570.0,104560.0,0.0962168]
[1737216016325,0.10014109,104570.0,104560.0,0.0962168]
[1737216016516,0.00090028,104570.0,104560.0,0.0962168]
[1737216016892,0.19577009,104570.0,104560.0,0.0005788]
[1737216017103,0.2360904,104570.0,104560.0,0.0005788]
[1737216017298,0.3360904,104570.0,104560.0,0.0005788]
[1737216017459,0.3360904,104570.0,104560.0,0.02890535]
[1737216017823,0.5860904,104570.0,104560.0,0.02890535]
[1737216018032,0.4860904,104570.0,104560.0,0.02890535]
[1737216018245,0.4687904,104570.0,104560.0,0.02890535]
[1737216018691,0.4687904,104570.0,104560.0,0.0005788]
[1737216019997,0.4917904,104570.0,104560.0,0.0005788]
[1737216020961,1.08880672,104570.0,104560.0,0.0005788]
[1737216022104,0.87528582,104570.0,104560.0,0.0005788]
[1737216022775,0.88568154,104570.0,104560.0,0.0005788]
[1737216023492,0.71570702,104570.0,104560.0,0.0005788]
[1737216024623,0.73502735,104570.0,104560.0,0.0005788]
[1737216024885,0.69470704,104570.0,104560.0,0.0005788]
[1737216028665,0.86599852,104570.0,104560.0,0.0005788]
[1737216031007,0.69470704,104570.0,104560.0,0.0005788]
[1737216032997,0.345648,104550.0,104540.0,0.0006282]
[1737216033234,0.54412962,104550.0,104540.0,0.00077841]
[1737216033433,0.45136881,104550.0,104540.0,0.00077841]
[1737216034000,0.57436881,104550.0,104540.0,0.00077841]
[1737216034200,0.47436881,104550.0,104540.0,0.00077841]
[1737216034872,0.47436881,104550.0,104540.0,0.00060217]
[1737216035101,0.54950962,104550.0,104540.0,0.00060217]
[1737216036284,0.93429347,104550.0,104540.0,0.00060217]
[1737216037208,0.94494775,104550.0,104540.0,0.00060217]
[1737216037369,0.94494775,104550.0,104540.0,1.7e-07]
[1737216037571,0.7736848,104550.0,104540.0,1.7e-07]
[1737216037924,0.8741848,104550.0,104540.0,1.7e-07]
[1737216038815,0.91688898,104550.0,104540.0,1.7e-07]
[1737216039217,1.26568898,104550.0,104540.0,1.7e-07]
[1737216039712,0.317475,104520.0,104510.0,0.0157455]
[1737216039919,0.52243662,104520.0,104510.0,0.0157455]
[1737216040667,0.51595662,104520.0,104510.0,0.0157455]
[1737216040880,0.47363662,104520.0,104510.0,0.0157455]
[1737216041920,0.55266711,104520.0,104510.0,0.0157455]
[1737216042128,0.2804263,104520.0,104510.0,0.0157455]
[1737216042327,0.3804263,104520.0,104510.0,0.0157455]
[1737216042563,0.5369063,104520.0,104510.0,0.0157455]
[1737216042935,0.55139581,104520.0,104510.0,0.0157455]
[1737216043133,0.57363662,104520.0,104510.0,0.0157455]
[1737216043791,0.47363662,104520.0,104510.0,0.0157455]
[1737216046464,0.48415576,104520.0,104510.0,0.0157455]
[1737216047224,0.37843495,104520.0,104510.0,0.0157455]
[1737216047550,0.38491495,104520.0,104510.0,0.0157455]
[1737216047750,0.40416048,104520.0,104510.0,0.0157455]
[1737216047950,0.37843495,104520.0,104510.0,0.0157455]
[1737216048113,0.58491495,104520.0,104510.0,0.0157455]
[1737216048333,0.48491495,104520.0,104510.0,0.0157455]
[1737216048531,0.30543495,104520.0,104510.0,0.0157455]
[1737216048736,0.31191495,104520.0,104510.0,0.0157455]
[1737216048937,0.46191495,104520.0,104510.0,0.0157455]
[1737216049217,0.31191495,104520.0,104510.0,0.0157455]
[1737216049824,0.20139581,104520.0,104510.0,0.0157455]
[1737216050059,0.19586884,104520.0,104510.0,0.0157455]
[1737216050264,0.34586884,104520.0,104510.0,0.0157455]
[1737216050475,0.19491581,104520.0,104510.0,0.1114295]
[1737216050684,0.19586884,104520.0,104510.0,0.1875295]
[1737216051321,0.10019384,104520.0,104510.0,0.1875295]
[1737216051531,0.19586884,104520.0,104510.0,0.1875295]
[1737216051685,0.293466,104540.0,104530.0,0.0761]
[1737216051893,0.38622681,104540.0,104530.0,0.171766]
[1737216052095,0.09924081,104540.0,104530.0,0.171766]
[1737216052439,0.38275735,104550.0,104540.0,0.095657]
[1737216052440,0.00014935,104550.0,104540.0,0.095657]
[1737216052642,0.09939016,104550.0,104540.0,0.219357]
[1737216053039,0.00014935,104550.0,104540.0,0.219357]
[1737216053931,0.9994212,104560.0,104550.0,0.369348]
[1737216054763,0.9994212,104560.0,104550.0,0.46858881]
[1737216054967,0.8713212,104560.0,104550.0,0.46858881]
[1737216055102,0.7432212,104560.0,104550.0,0.58548704]
[1737216055309,0.7432212,104560.0,104550.0,0.369348]
[1737216056203,0.7432212,104560.0,104550.0,0.37641719]
[1737216057810,0.7432212,104560.0,104550.0,0.369348]
[1737216059651,0.73688498,104560.0,104550.0,0.369348]
[1737216060478,0.73688498,104560.0,104550.0,0.171748]
[1737216061223,0.93176379,104560.0,104550.0,0.0761]
[1737216061349,0.73688498,104560.0,104550.0,0.095648]
[1737216062651,0.73688498,104560.0,104550.0,0.321748]
[1737216064465,0.73688498,104560.0,104550.0,0.171748]
[1737216065655,0.73688498,104560.0,104550.0,0.1721758]
[1737216066331,0.73688498,104560.0,104550.0,0.17313223]
[1737216066332,0.73778337,104560.0,104550.0,0.17313223]
[1737216066529,0.73778337,104560.0,104550.0,0.32313218]
[1737216066727,0.73778337,104560.0,104550.0,0.5861064]
[1737216066934,0.73778337,104560.0,104550.0,0.7337064]
[1737216067289,0.73778337,104560.0,104550.0,0.6337064]
[1737216067487,0.73778337,104560.0,104550.0,0.46901661]
[1737216067691,0.73778337,104560.0,104550.0,0.3697758]
[1737216068082,0.73778337,104560.0,104550.0,0.2197758]
[1737216069196,0.73778337,104560.0,104550.0,0.3697758]
[1737216069410,0.73778337,104560.0,104550.0,0.46901661]
[1737216069808,0.73778337,104560.0,104550.0,0.3697758]
[1737216070317,0.73778337,104560.0,104550.0,0.3927758]
[1737216070520,0.73778337,104560.0,104550.0,0.46901661]
[1737216070697,0.73778337,104560.0,104550.0,0.3697758]
[1737216077315,0.73778337,104560.0,104550.0,0.6567064]
[1737216077519,0.73778337,104560.0,104550.0,0.60908995]
[1737216077727,0.73778337,104560.0,104550.0,0.49201661]
[1737216080245,0.73778337,104560.0,104550.0,0.70908995]
[1737216080472,0.73778337,104560.0,104550.0,0.3697758]
[1737216080677,0.83342137,104560.0,104550.0,0.0004278]
[1737216081127,0.73778337,104560.0,104550.0,0.2460758]
[1737216082695,0.73778337,104560.0,104550.0,0.42411661]
[1737216084721,0.73778337,104560.0,104550.0,0.44711661]
[1737216084958,0.61316851,104560.0,104550.0,0.81378995]
[1737216085670,0.61316851,104560.0,104550.0,0.84324599]
[1737216086573,0.13498414,104560.0,104550.0,0.81378995]
[1737216086798,0.13498414,104560.0,104550.0,0.83330699]
[1737216087025,0.11585614,104560.0,104550.0,0.83330699]
[1737216088329,0.11585614,104560.0,104550.0,0.61623365]
[1737216089019,0.11585614,104560.0,104550.0,0.83330699]
[1737216090375,0.11585614,104560.0,104550.0,0.36483365]
[1737216091389,0.11585614,104560.0,104550.0,0.48190699]
[1737216091615,0.11585614,104560.0,104550.0,0.58190699]
[1737216091993,0.11585614,104560.0,104550.0,0.70490699]
[1737216093207,0.11585614,104560.0,104550.0,0.78946907]
[1737216094158,0.11585614,104560.0,104550.0,1.31132574]
[1737216094360,0.11585614,104560.0,104550.0,1.21132574]
[1737216094559,0.11585614,104560.0,104550.0,1.31132574]
[1737216096422,0.11585614,104560.0,104550.0,1.39384366]
[1737216096654,0.11585614,104560.0,104550.0,1.42334983]
[1737216097225,0.1317,104600.0,104580.0,0.15]
[1737216097544,0.13185012,104600.0,104590.0,0.095611]
[1737216100367,0.00015012,104600.0,104590.0,0.34485181]
[1737216100563,0.00015012,104600.0,104590.0,0.46192515]
[1737216102059,0.00015012,104600.0,104590.0,0.48492515]
[1737216102267,0.00015012,104600.0,104590.0,1.11042269]
[1737216102484,0.00089986,104610.0,104600.0,0.268602]
[1737216102710,0.00089986,104610.0,104600.0,0.48491615]
[1737216102940,0.00089986,104610.0,104600.0,0.34484281]
[1737216103355,0.00089986,104610.0,104600.0,0.245602]
[1737216104915,0.00089986,104610.0,104600.0,0.77082055]
[1737216106403,0.00089986,104610.0,104600.0,0.33035069]
[1737216107281,0.00089986,104610.0,104600.0,0.245602]
[1737216107906,0.00089986,104610.0,104600.0,0.46191615]
[1737216109216,0.00089986,104610.0,104600.0,0.34484281]
[1737216109430,0.00089986,104610.0,104600.0,0.245602]
[1737216109851,0.00089986,104610.0,104600.0,0.33035069]
[1737216110501,0.00089986,104610.0,104600.0,0.245602]
[1737216110710,0.08299986,104610.0,104600.0,0.095602]
[1737216110940,0.17859286,104610.0,104590.0,0.57282239]
[1737216111151,0.09655503,104600.0,104590.0,0.08474869]
[1737216111364,0.32289584,104600.0,104590.0,0.08474869]
[1737216111569,0.177711,104590.0,104580.0,0.08474869]
[1737216111807,0.177711,104590.0,104580.0,0.08489881]
[1737216112019,0.27695181,104590.0,104580.0,0.08489881]
[1737216112637,0.32195181,104590.0,104580.0,0.00015012]
[1737216115340,0.32195181,104590.0,104580.0,0.00057772]
[1737216116183,0.42195181,104590.0,104580.0,0.00057772]
[1737216118384,0.62119262,104590.0,104580.0,0.00057772]
[1737216118736,0.69419262,104590.0,104580.0,0.00057772]
[1737216119143,0.59495181,104590.0,104580.0,0.00057772]
[1737216120407,0.49495181,104590.0,104580.0,0.00057772]
[1737216120812,0.225938,104560.0,104550.0,0.0004278]
[1737216121022,0.32517881,104560.0,104550.0,0.0004278]
[1737216124800,0.49817881,104560.0,104550.0,0.0004278]
[1737216124923,0.095675,104520.0,104510.0,0.0146743]
[1737216125134,0.19586884,104520.0,104510.0,0.0146743]
[1737216126312,0.19596437,104520.0,104510.0,0.0146743]
[1737216126513,0.38731837,104520.0,104500.0,0.30257096]
[1737216126678,0.00095303,104510.0,104500.0,0.27943096]
[1737216127163,0.00095303,104510.0,104500.0,0.42943096]
[1737216127789,0.00095303,104510.0,104500.0,0.23804496]
[1737216128625,0.00095303,104510.0,104490.0,0.5748033]
[1737216128626,0.19588084,104510.0,104490.0,0.6705003]
[1737216128826,0.19587784,104510.0,104500.0,0.095693]
[1737216129035,0.10019384,104510.0,104500.0,0.095693]
[1737216129251,0.37406284,104510.0,104490.0,0.0963283]
[1737216129466,0.66112984,104510.0,104490.0,0.2877323]
[1737216129677,0.66113484,104510.0,104490.0,0.0963283]
[1737216129879,0.19493381,104500.0,104490.0,0.0006283]
[1737216130127,0.24273381,104500.0,104490.0,0.0006283]
[1737216130775,0.38534871,104500.0,104490.0,0.0006283]
[1737216131215,0.48534871,104500.0,104490.0,0.0006283]
[1737216132091,0.50834871,104500.0,104490.0,0.0006283]
[1737216132324,0.88224871,104500.0,104490.0,0.0006283]
[1737216132820,0.90912055,104500.0,104490.0,0.0006283]
[1737216133052,0.52587384,104490.0,104480.0,0.06976571]
[1737216133297,0.62435546,104490.0,104480.0,0.06976571]
[1737216133534,0.59748362,104490.0,104480.0,0.06976571]
[1737216133781,0.62435546,104490.0,104480.0,0.06976571]
[1737216134020,0.368712,104480.0,104470.0,0.000428]
[1737216134264,0.53156465,104480.0,104470.0,0.000428]
[1737216134501,0.3033,104470.0,104460.0,0.07271726]
[1737216134705,0.49826181,104470.0,104460.0,0.07271726]
[1737216135001,0.49826181,104470.0,104450.0,0.0004282]
[1737216135002,0.123,104460.0,104450.0,0.0004282]
[1737216135238,0.37514265,104460.0,104450.0,0.0004282]
[1737216135477,0.37514265,104460.0,104450.0,0.00092891]
[1737216135696,0.178257,104430.0,104420.0,0.07733547]
[1737216135965,0.28393781,104430.0,104420.0,0.07748482]
[1737216136923,0.27749781,104430.0,104420.0,0.07748482]
[1737216137130,0.19499781,104430.0,104420.0,0.07748482]
[1737216138737,0.09924081,104430.0,104420.0,0.07748482]
[1737216138940,0.19499781,104430.0,104420.0,0.07748482]
[1737216139150,0.09924081,104430.0,104420.0,0.17325182]
[1737216139354,0.09924081,104430.0,104420.0,0.27325182]
[1737216139560,0.176147,104450.0,104430.0,0.287268]
[1737216139798,0.79924081,104440.0,104430.0,0.287268]
[1737216140410,0.09924081,104440.0,104430.0,0.387268]
[1737216140621,0.09924081,104440.0,104430.0,0.3890635]
[1737216141045,0.839274,104470.0,104450.0,0.287211]
[1737216141221,0.79924081,104460.0,104450.0,0.287211]
[1737216141431,0.09924081,104460.0,104450.0,0.287211]
[1737216141645,0.09924081,104460.0,104450.0,0.095734]
[1737216142251,0.19497181,104460.0,104440.0,0.58349941]
[1737216142474,0.095739,104450.0,104440.0,0.00299391]
[1737216142676,0.19497981,104450.0,104440.0,0.00299391]
[1737216142881,0.09924081,104450.0,104440.0,0.00299391]
[1737216143294,0.09924081,104450.0,104440.0,0.09874191]
[1737216143703,0.19497981,104450.0,104440.0,0.00299391]
[1737216143902,0.09924081,104450.0,104440.0,0.00299391]
[1737216144104,0.09924081,104450.0,104440.0,0.09874191]
[1737216144545,0.19497981,104450.0,104440.0,0.00299391]
[1737216144953,0.09924081,104450.0,104440.0,0.00299391]
[1737216145133,0.19497981,104450.0,104440.0,0.00299391]
[1737216146332,0.09924081,104450.0,104440.0,0.09874191]
[1737216146937,0.617833,104470.0,104450.0,0.287211]
[1737216147127,0.09924081,104460.0,104450.0,0.287211]
[1737216147339,0.09924081,104460.0,104440.0,0.39500769]
[1737216147340,0.19497381,104460.0,104440.0,0.39500769]
[1737216147534,0.09924081,104460.0,104450.0,0.095739]
[1737216148169,0.3239,104470.0,104450.0,0.1017955]
[1737216148519,0.42314081,104470.0,104460.0,0.09573]
[1737216148822,0.42314081,104470.0,104450.0,0.3889905]
[1737216148823,0.51886181,104470.0,104450.0,0.3889905]
[1737216149034,0.095739,104450.0,104440.0,0.10352369]
[1737216149257,0.09924081,104450.0,104440.0,0.28724]
[1737216149677,0.38646481,104450.0,104430.0,0.09753315]
[1737216149937,0.287224,104450.0,104440.0,0.00014935]
[1737216150160,0.38646481,104450.0,104440.0,0.00014935]
[1737216150373,0.38566481,104450.0,104440.0,0.00014935]
[1737216150784,0.09924081,104450.0,104440.0,0.00793121]
[1737216151000,0.09924081,104450.0,104440.0,0.00972671]
[1737216151247,0.515349,104470.0,104450.0,0.287212]
[1737216151466,0.09924081,104460.0,104450.0,0.287212]
[1737216151673,0.19497181,104460.0,104440.0,0.58843471]
[1737216151885,0.19497181,104460.0,104440.0,0.77992171]
[1737216152091,0.19497181,104460.0,104440.0,0.58843471]
[1737216152328,0.19497181,104460.0,104440.0,0.39694871]
[1737216152550,0.57790481,104460.0,104440.0,0.10367221]
[1737216152776,0.38643181,104460.0,104440.0,0.39696271]
[1737216152981,0.48217081,104460.0,104440.0,0.10546771]
[1737216153188,0.48217081,104460.0,104440.0,0.00793121]
[1737216153189,0.095739,104450.0,104440.0,0.00793121]
[1737216153401,0.18497981,104450.0,104440.0,0.00793121]
[1737216153838,0.20797981,104450.0,104440.0,0.00793121]
[1737216154291,0.53276292,104450.0,104440.0,0.00793121]
[1737216154717,0.43477981,104450.0,104440.0,0.00793121]
[1737216158229,0.35797981,104450.0,104440.0,0.00793121]
[1737216158661,0.78008431,104450.0,104440.0,0.00793121]
[1737216161180,0.75708431,104450.0,104440.0,0.00793121]
[1737216161860,0.75708431,104450.0,104440.0,0.00314237]
[1737216162712,0.76384431,104450.0,104440.0,0.00314237]
[1737216163363,0.74243981,104450.0,104440.0,0.00314237]
[1737216163571,0.76543981,104450.0,104440.0,0.00314237]
[1737216163979,1.46543981,104450.0,104440.0,0.00314237]
[1737216164246,1.44243981,104450.0,104440.0,0.00314237]
[1737216164463,1.43567981,104450.0,104440.0,0.00314237]
[1737216164671,1.54064431,104450.0,104440.0,0.00314237]
[1737216164886,1.54168062,104450.0,104440.0,0.00314237]
[1737216165091,1.54168062,104450.0,104440.0,0.00014935]
[1737216165529,1.54168062,104450.0,104440.0,0.00057755]
[1737216165743,1.46543981,104450.0,104440.0,0.00057755]
[1737216166803,1.46543981,104450.0,104440.0,0.00037855]
[1737216168040,1.14153981,104450.0,104440.0,0.00037855]
[1737216172349,1.11177981,104450.0,104440.0,0.00037855]
[1737216172550,1.21714431,104450.0,104440.0,0.00037855]
[1737216172963,1.15769832,104450.0,104440.0,0.00037855]
[1737216175094,1.18069832,104450.0,104440.0,0.00037855]
[1737216176259,1.14193981,104450.0,104440.0,0.00037855]
[1737216176676,1.11893981,104450.0,104440.0,0.00037855]
[1737216178648,1.11983924,104450.0,104440.0,0.00037855]
[1737216182391,1.14283924,104450.0,104440.0,0.00037855]
[1737216182598,1.14197819,104450.0,104440.0,0.00037855]
[1737216182802,1.241219,104450.0,104440.0,0.00037855]
[1737216183465,1.14197819,104450.0,104440.0,0.00037855]
[1737216183879,1.52303985,104450.0,104440.0,0.00037855]
[1737216184309,1.52303985,104450.0,104440.0,5.5e-07]
[1737216184724,1.6500604,104450.0,104440.0,5.5e-07]
[1737216185788,1.52303985,104450.0,104440.0,5.5e-07]
[1737216186040,1.62228066,104450.0,104440.0,5.5e-07]
[1737216186462,1.52303985,104450.0,104440.0,5.5e-07]
[1737216187164,1.35367911,104450.0,104440.0,5.5e-07]
[1737216187577,1.34651911,104450.0,104440.0,5.5e-07]
[1737216187786,1.35367911,104450.0,104440.0,5.5e-07]
[1737216188639,0.65367911,104450.0,104440.0,5.5e-07]